bitfinex/quotes_ETHUSD_20220106
["timestamp","ask_amount","ask_price","bid_price","bid_amount"]
[1641473810325,0.62749252,3354.8,3354.7,11.8]
[1641473810522,0.62749252,3354.8,3354.7,12.1]
[1641473810722,0.62749252,3354.8,3354.7,13.1]
[1641473810924,1.04086771,3356.4,3355.7,1.15376245]
[1641473811124,17.63736326,3356.5,3354.9,8.163]
[1641473811329,0.00909478,3356.3,3355.3,0.7452183]
[1641473811524,0.00909478,3356.3,3355.2,1.4904365]
[1641473811723,0.00852636,3356.2,3355.1,1.49046]
[1641473812024,0.00795793,3356.1,3355.1,1.49046]
[1641473812425,0.00795793,3356.1,3354.9,3.9458]
[1641473812426,0.74533,3355.9,3354.9,3.9458]
[1641473812625,0.33603018,3355.9,3354.6,3.1578]
[1641473812835,0.00625266,3355.8,3354.8,0.74539]
[1641473813299,0.00568424,3355.7,3354.8,0.74539]
[1641473813491,0.00568424,3355.7,3355.0,1.159397]
[1641473813686,0.00511581,3355.6,3355.0,1.159397]
[1641473814088,0.00454739,3355.5,3355.0,1.159397]
[1641473814488,0.00397897,3355.4,3355.1,2.00507294]
[1641473814694,3.86295239,3356.3,3355.1,3.3]
[1641473814887,3.86295239,3356.3,3354.9,0.02003366]
[1641473814888,0.00795793,3356.1,3355.2,0.00113685]
[1641473815087,0.74533,3356.0,3355.2,0.00113685]
[1641473815287,20.55328776,3355.9,3355.0,0.0022737]
[1641473815488,20.55612987,3355.9,3355.0,0.0022737]
[1641473815689,0.00227369,3355.8,3355.0,0.0022737]
[1641473815893,2.95986304,3355.8,3355.0,0.0022737]
[1641473816088,17.59170527,3355.7,3355.0,0.0022737]
[1641473816592,0.00113684,3355.6,3355.0,0.0022737]
[1641473817219,17.66118739,3355.7,3355.0,0.0022737]
[1641473817417,17.59,3355.5,3355.0,0.00341054]
[1641473817616,3.10455406,3355.4,3355.0,0.00341054]
[1641473817819,17.59,3355.3,3355.0,0.00341054]
[1641473818118,3.00514769,3355.2,3355.0,0.00341054]
[1641473818318,17.59,3355.1,3355.0,0.00341054]
[1641473819019,0.43,3355.2,3355.0,0.00341054]
[1641473819419,0.77935297,3355.4,3355.0,0.00341054]
[1641473819621,0.77935297,3355.4,3355.0,0.02341711]
[1641473819622,0.74545,3355.4,3355.0,0.02341711]
[1641473819821,0.78382557,3355.4,3355.0,0.02341711]
[1641473820020,0.78382557,3355.4,3355.1,0.00284211]
[1641473820224,20.63327569,3355.3,3355.1,0.00284211]
[1641473820425,0.78382557,3355.4,3355.1,0.00284211]
[1641473821564,0.78428412,3355.4,3355.1,0.00284211]
[1641473822365,1.92096,3355.6,3355.1,0.00284211]
[1641473822366,0.43,3355.6,3355.1,0.00284211]
[1641473822965,0.00127004,3355.3,3355.1,0.00284211]
[1641473823966,17.59,3356.0,3355.1,0.00284211]
[1641473824519,17.5922737,3356.0,3355.1,0.00284211]
[1641473824718,0.0022737,3356.0,3355.6,1.25482152]
[1641473825521,0.0022737,3356.0,3355.2,0.02585074]
[1641473825921,0.74534,3355.9,3355.3,0.00170527]
[1641473826122,20.59171811,3355.8,3355.3,0.00170527]
[1641473826323,20.60282973,3355.8,3355.3,0.00170527]
[1641473826622,2.47546,3355.7,3355.3,0.00170527]
[1641473826823,17.59,3355.6,3355.3,0.00170527]
[1641473827026,17.59,3355.4,3355.3,0.00170527]
[1641473827222,18.02,3355.4,3355.3,0.00170527]
[1641473827421,10.6,3355.3,3354.3,1.30265807]
[1641473827623,11.6,3355.3,3354.0,3.79290905]
[1641473827823,11.6,3355.3,3353.8,4.79729862]
[1641473827824,17.59,3355.2,3354.4,0.00511581]
[1641473828026,1.0,3355.1,3354.4,0.00511581]
[1641473828262,18.59,3355.1,3354.0,0.0073895]
[1641473828667,0.74561,3354.7,3354.1,1.02584497]
[1641473829065,0.74561,3354.7,3354.2,0.00625265]
[1641473829264,0.43,3355.0,3354.2,0.00625265]
[1641473829568,0.43,3355.0,3354.2,2.53510681]
[1641473829764,1.17554,3355.0,3354.2,2.53510681]
[1641473829965,1.20630254,3355.0,3354.7,1.1780353]
[1641473830165,0.46076254,3355.0,3354.7,1.1780353]
[1641473830367,0.43,3355.0,3354.8,0.00284211]
[1641473830764,0.43,3355.0,3354.8,0.01569802]
[1641473830967,18.02,3355.0,3354.8,0.01569802]
[1641473831167,18.02,3355.0,3354.9,0.00227369]
[1641473831367,6.03,3355.0,3354.9,0.00227369]
[1641473832027,0.43,3355.0,3354.9,0.00227369]
[1641473832421,0.77808996,3355.1,3354.9,0.00227369]
[1641473833021,0.77808996,3355.1,3355.0,1.35609989]
[1641473833225,1.01269304,3356.1,3354.9,0.74761939]
[1641473833226,1.08032033,3355.8,3354.9,0.74761939]
[1641473833424,1.04200456,3355.8,3355.0,0.00170527]
[1641473833625,0.0022737,3355.7,3355.0,0.00170527]
[1641473833823,0.0022737,3355.7,3354.9,0.00227369]
[1641473834025,0.00170527,3355.6,3354.9,0.00227369]
[1641473834225,0.00170527,3355.6,3355.5,3.79328484]
[1641473834425,0.00100995,3355.7,3355.5,3.79328484]
[1641473834828,0.00100995,3355.7,3355.1,1.11114802]
[1641473835128,0.00100995,3355.7,3355.2,2.5282192]
[1641473835766,0.00100995,3355.7,3355.5,3.79219555]
[1641473835967,10.15,3355.8,3355.1,2.43156277]
[1641473836168,10.15,3355.8,3355.0,5.05771313]
[1641473836370,0.0407338,3355.8,3355.3,0.0129202]
[1641473836768,0.00284212,3355.8,3355.3,0.0129202]
[1641473836969,0.00284212,3355.8,3355.3,1.79438532]
[1641473836970,0.74539,3355.6,3355.3,1.79438532]
[1641473837472,0.00113685,3355.5,3355.3,1.79438532]
[1641473838673,0.00113685,3355.5,3355.3,2.53965402]
[1641473838874,0.00113685,3355.5,3355.3,2.84726957]
[1641473839072,0.00113685,3355.5,3355.4,12.75]
[1641473839275,0.6676504,3356.8,3355.5,11.75]
[1641473839525,0.6676504,3356.8,3356.7,2.0183533]
[1641473840326,0.6676504,3356.8,3356.7,13.1183533]
[1641473840728,0.6676504,3356.8,3356.7,14.8632533]
[1641473840929,0.6676504,3356.8,3356.7,17.88146305]
[1641473841727,6.17,3357.7,3357.0,0.744734]
[1641473841928,6.17,3357.7,3357.2,0.74471]
[1641473842126,0.01193689,3357.6,3357.2,0.74471]
[1641473842527,0.01136847,3357.5,3356.8,11.75]
[1641473842733,0.01136847,3357.5,3357.1,2.89746186]
[1641473843031,6.17,3357.7,3357.3,0.74484]
[1641473843032,0.01080005,3357.4,3357.3,0.74484]
[1641473844781,0.01198639,3357.4,3357.3,0.74484]
[1641473845483,0.01198639,3357.4,3356.7,1.50264395]
[1641473845683,0.01198639,3357.4,3356.7,0.01305395]
[1641473845882,0.01023162,3357.3,3356.7,3.7853322]
[1641473846284,0.00118634,3357.4,3356.8,1.48962]
[1641473846285,0.0096632,3357.2,3356.8,1.48962]
[1641473846481,0.0096632,3357.2,3357.1,7.84349349]
[1641473846682,0.00118634,3357.4,3357.1,7.84349349]
[1641473847128,0.01023162,3357.3,3357.1,1.39349349]
[1641473847529,0.0096632,3357.2,3357.1,1.39349349]
[1641473848629,0.0096632,3357.2,3357.1,1.69349349]
[1641473848831,0.0096632,3357.2,3357.1,1.39349349]
[1641473849233,0.0096632,3357.2,3357.1,13.14349349]
[1641473850033,0.0096632,3357.2,3357.1,14.44349349]
[1641473850634,6.32e-05,3357.2,3357.1,15.9524526]
[1641473850882,6.32e-05,3357.2,3357.1,16.3824526]
[1641473851083,0.06102756,3358.7,3358.2,0.7445]
[1641473851282,0.06102756,3358.7,3357.2,3.6418]
[1641473851283,1.77770381,3358.6,3357.2,3.6418]
[1641473851480,1.77770381,3358.6,3356.9,3.79302844]
[1641473851481,0.01207574,3358.1,3356.9,3.79302844]
[1641473851686,0.01207574,3358.1,3356.0,2.9787035]
[1641473851687,0.01207574,3358.1,3357.0,3.79302844]
[1641473851881,0.00454739,3358.0,3357.0,3.79416528]
[1641473852281,0.00397896,3357.9,3357.0,3.79416528]
[1641473852681,0.00341054,3357.8,3357.2,1.13161249]
[1641473852884,0.00341054,3357.8,3357.5,0.67034]
[1641473853081,0.00284212,3357.7,3357.5,0.68349031]
[1641473853485,0.00227369,3357.6,3357.5,0.68349031]
[1641473853681,0.00227369,3357.6,3357.5,2.05760768]
[1641473853885,0.00227369,3357.6,3357.5,0.68349031]
[1641473854083,0.00227369,3357.6,3357.5,0.98349031]
[1641473854381,0.00227369,3357.6,3357.5,4.03349031]
[1641473855032,0.00227369,3357.6,3357.5,5.26045642]
[1641473855434,0.00323335,3357.6,3357.5,5.26045642]
[1641473856036,0.00323335,3357.6,3357.5,6.76927308]
[1641473856633,0.00323335,3357.6,3357.5,7.78718472]
[1641473857235,0.00323335,3357.6,3357.5,3.21021861]
[1641473857435,0.00323335,3357.6,3357.5,2.53987861]
[1641473857834,8.9,3357.4,3357.0,0.00113684]
[1641473858036,11.76288079,3357.1,3357.0,0.00113684]
[1641473858281,12.19288079,3357.1,3356.9,0.00170527]
[1641473858482,29.78288079,3357.1,3356.9,0.00170527]
[1641473858684,29.78288079,3357.1,3355.8,6.68685836]
[1641473858685,0.44288079,3357.1,3356.0,0.745058]
[1641473858882,0.00170527,3357.5,3356.1,2.9127199]
[1641473859081,0.00170527,3357.5,3356.1,2.91897256]
[1641473859282,0.00113685,3357.4,3356.2,0.00568423]
[1641473859683,0.00113685,3357.4,3356.1,5.18757072]
[1641473859684,0.00170527,3357.5,3357.2,1.16385898]
[1641473860083,0.00113685,3357.4,3357.2,1.16385898]
[1641473860484,0.00170527,3357.5,3357.2,1.16385898]
[1641473860685,0.00170527,3357.5,3357.3,0.67034]
[1641473860886,0.00095966,3357.6,3357.3,15.79481209]
[1641473861584,1.27770381,3358.6,3357.5,11.75]
[1641473861784,1.27770381,3358.6,3358.5,1.10779077]
[1641473862026,1.27770381,3358.6,3357.9,0.67007]
[1641473862526,0.00625265,3358.5,3357.9,0.67007]
[1641473862927,0.00568423,3358.4,3357.9,1.4147101]
[1641473863326,1.27770381,3358.6,3358.0,1.21253268]
[1641473863327,0.00511581,3358.3,3358.0,1.21253268]
[1641473863527,0.00511581,3358.3,3358.2,5.31450563]
[1641473863728,1.27770381,3358.6,3358.2,5.31450563]
[1641473863931,1.27770381,3358.6,3358.3,0.67008]
[1641473864127,0.00625265,3358.5,3358.3,0.67008]
[1641473864532,0.00568423,3358.4,3358.3,0.67008]
[1641473866182,0.0066555,3358.4,3358.3,0.67008]
[1641473867584,0.0066555,3358.4,3358.3,7.26522425]
[1641473867986,0.0066555,3358.4,3358.3,2.31522425]
[1641473868985,0.0066555,3358.4,3358.3,5.96522425]
[1641473869190,0.0066555,3358.4,3358.3,4.32008]
[1641473871128,0.0066555,3358.4,3358.3,6.32898738]
[1641473873875,0.0066555,3358.4,3358.3,14.42898738]
[1641473874077,0.0066555,3358.4,3358.3,15.73660293]
[1641473874677,1.27770381,3358.6,3358.4,10.45]
[1641473874877,1.27770381,3358.6,3358.4,11.9502196]
[1641473875278,1.27770381,3358.6,3358.5,7.24433]
[1641473875678,1.27884066,3358.6,3358.5,7.54433]
[1641473876783,1.27884066,3358.6,3358.5,7.24433]
[1641473877071,1.27972619,3358.6,3358.5,7.54433]
[1641473877456,2.77972619,3358.6,3358.5,10.63514901]
[1641473877657,2.77972619,3358.6,3358.5,11.63514901]
[1641473877956,2.77972619,3358.6,3358.5,8.54433]
[1641473878156,2.77972619,3358.6,3358.5,11.07019684]
[1641473878660,2.77972619,3358.6,3358.5,2.52586684]
[1641473879656,2.77972619,3358.6,3358.4,0.7559223]
[1641473879857,2.77972619,3358.6,3358.4,0.0115696]
[1641473880258,2.77972619,3358.6,3358.4,1.3516396]
[1641473880874,1.5,3358.5,3358.4,1.3516396]
[1641473881072,1.5,3358.5,3358.4,2.6516396]
[1641473881670,1.5,3358.5,3358.4,1.3516396]
[1641473882271,1.5,3358.5,3358.4,3.87770664]
[1641473882875,1.5,3358.5,3358.4,2.53763664]
[1641473883270,1.5,3358.5,3358.4,0.0115696]
[1641473883874,1.5,3358.5,3358.4,2.53783286]
[1641473884529,1.5,3358.5,3358.4,0.0115696]
[1641473884928,1.5,3358.5,3358.4,3.5115696]
[1641473885135,1.5,3358.5,3358.4,6.03783286]
[1641473885328,1.5,3358.5,3358.4,2.53783286]
[1641473885730,1.5,3358.5,3358.4,4.33229741]
[1641473886732,1.5,3358.5,3358.4,8.38229741]
[1641473886932,1.5,3358.5,3358.4,7.88783286]
[1641473887132,1.5,3358.5,3358.4,9.16268368]
[1641473887337,1.5,3358.5,3358.4,10.16268368]
[1641473887632,1.5,3358.5,3358.4,7.88783286]
[1641473887831,1.50087076,3358.5,3358.4,7.88783286]
[1641473888033,1.50087076,3358.5,3358.4,10.87673661]
[1641473888670,0.6676504,3358.8,3358.5,8.25]
[1641473888871,0.6676504,3358.8,3358.6,3.131769]
[1641473889071,0.6676504,3358.8,3358.6,5.845989]
[1641473889269,0.6176504,3358.8,3358.6,5.845989]
[1641473889470,0.6176504,3358.8,3358.7,14.74544899]
[1641473889670,0.13819997,3359.9,3359.6,1.31021222]
[1641473891574,0.00603182,3360.0,3359.6,2.05441502]
[1641473892022,0.0073895,3359.9,3359.6,2.05441502]
[1641473892426,0.00682108,3359.8,3359.6,2.05441502]
[1641473892824,0.00625266,3359.7,3359.6,1.31021222]
[1641473893926,0.00625266,3359.7,3359.6,3.83550437]
[1641473896306,0.00625266,3359.7,3359.6,2.52529215]
[1641473896505,0.4484271,3359.7,3359.6,2.52529215]
[1641473896704,12.1984271,3359.7,3359.6,0.46949215]
[1641473897305,12.1984271,3359.7,3359.6,9.215e-05]
[1641473897706,0.4484271,3359.7,3358.7,2.9266503]
[1641473897906,0.4484271,3359.7,3358.6,2.46063539]
[1641473898106,0.00568423,3359.6,3358.6,2.46063539]
[1641473898307,0.00656892,3359.6,3358.6,2.46063539]
[1641473898608,0.00511581,3359.5,3358.6,2.01397539]
[1641473898809,0.00511581,3359.5,3359.0,0.59553]
[1641473899009,0.00454739,3359.4,3359.0,0.59553]
[1641473899408,0.00397896,3359.3,3359.2,9.36861071]
[1641473899834,0.00397896,3359.3,3359.2,10.11286071]
[1641473900234,0.00397896,3359.3,3359.2,10.41286071]
[1641473900438,0.00397896,3359.3,3359.2,11.41286071]
[1641473900635,0.00397896,3359.3,3359.2,1.76286071]
[1641473900838,0.00397896,3359.3,3359.2,1.01861071]
[1641473901035,0.00397896,3359.3,3359.2,1.0311408]
[1641473901740,0.00397896,3359.3,3359.2,5.2311408]
[1641473901941,0.00397896,3359.3,3359.2,5.9754108]
[1641473902843,0.00397896,3359.3,3359.2,5.2311408]
[1641473903269,0.00397896,3359.3,3359.2,5.9754008]
[1641473905773,0.00397896,3359.3,3359.2,8.95604135]
[1641473905975,0.00397896,3359.3,3359.2,12.87865769]
[1641473906172,0.00397896,3359.3,3359.2,9.95604135]
[1641473906572,0.00397896,3359.3,3359.2,13.50604135]
[1641473906774,0.00397896,3359.3,3359.2,10.5254008]
[1641473907039,0.00088469,3359.6,3359.5,3.35]
[1641473907235,0.00088469,3359.6,3359.5,4.09415]
[1641473907433,0.00088469,3359.6,3359.5,0.74415]
[1641473908033,0.00088469,3359.6,3359.3,1.19066]
[1641473908034,0.00088469,3359.6,3359.2,7.10453009]
[1641473908233,0.00088469,3359.6,3359.2,0.01253009]
[1641473908438,0.00113685,3359.5,3359.4,3.0301184]
[1641473909434,0.00113685,3359.5,3359.3,3.57523649]
[1641473910237,0.00113685,3359.5,3359.3,1.30232441]
[1641473910775,0.00113685,3359.5,3359.3,3.57523649]
[1641473911377,0.00113685,3359.5,3359.3,2.81394671]
[1641473911989,0.00113685,3359.5,3359.4,0.01255127]
[1641473913381,0.00113685,3359.5,3359.3,1.5116223]
[1641473913382,11.75,3359.4,3359.3,0.39077357]
[1641473913580,12.21687649,3359.4,3359.3,7.357e-05]
[1641473913782,12.96148649,3359.4,3359.1,2.27291208]
[1641473913981,0.46687649,3359.4,3359.0,2.19846611]
[1641473914186,1.5420551,3359.4,3359.0,2.19846611]
[1641473914384,1.5420551,3359.4,3359.1,0.00113685]
[1641473914385,1.50279439,3359.4,3359.1,0.00113685]
[1641473914631,1.04086771,3359.3,3359.1,0.00113685]
[1641473914831,0.43,3359.2,3359.1,0.00113685]
[1641473915433,0.43,3359.2,3359.0,0.00170527]
[1641473915929,0.43,3359.2,3359.0,1.13554792]
[1641473916132,1.17453,3359.2,3359.0,1.13554792]
[1641473916332,1.17453,3359.2,3359.1,0.00113684]
[1641473916532,7.77453,3359.2,3359.1,0.00113684]
[1641473916734,7.03,3359.2,3359.1,0.00113684]
[1641473916934,7.03,3359.2,3359.0,0.00170527]
[1641473917335,0.43,3359.2,3359.0,0.00170527]
[1641473917534,0.43,3359.2,3359.1,0.01156699]
[1641473917938,0.43,3359.2,3359.1,0.01270383]
[1641473918572,0.43,3359.2,3359.1,2.53836956]
[1641473919374,3.13,3359.2,3359.1,2.53836956]
[1641473919575,3.13088479,3359.2,3359.1,2.53836956]
[1641473920177,4.92006479,3359.2,3359.1,2.53836956]
[1641473920378,22.51006479,3359.2,3359.1,2.53836956]
[1641473921676,22.21006479,3359.2,3359.1,2.53836956]
[1641473925977,22.21006479,3359.2,3359.1,0.01270383]
[1641473926977,21.46544479,3359.2,3359.1,0.01270383]
[1641473927579,21.46544479,3359.2,3359.1,2.53855475]
[1641473927979,3.87544479,3359.2,3359.1,2.53855475]
[1641473928181,3.87544479,3359.2,3359.1,0.01270383]
[1641473928780,1.17544479,3359.2,3359.1,0.01270383]
[1641473928979,1.17544479,3359.2,3359.1,2.53855475]
[1641473929284,1.17544479,3359.2,3357.8,2.17193506]
[1641473929285,11.75,3359.0,3357.8,2.17193506]
[1641473929539,0.01298206,3357.9,3357.3,1.06426474]
[1641473929734,11.16216723,3357.5,3357.4,1.06426474]
[1641473929935,29.18216723,3357.5,3357.4,1.07392794]
[1641473930237,29.2135868,3357.5,3357.4,1.07392794]
[1641473930432,29.2135868,3357.5,3357.4,0.0096632]
[1641473930635,29.9584468,3357.5,3357.4,0.0096632]
[1641473930835,29.2135868,3357.5,3357.0,0.0119369]
[1641473931038,29.28477419,3357.5,3356.7,0.01364217]
[1641473931234,29.28477419,3357.5,3355.9,0.01818956]
[1641473931439,30.25445451,3357.5,3355.9,0.01818956]
[1641473931637,30.3256419,3357.5,3355.9,0.01818956]
[1641473931839,30.3256419,3357.5,3356.2,1.23752186]
[1641473932037,30.25445451,3357.5,3356.2,1.23752186]
[1641473932237,30.25445451,3357.5,3356.3,0.01591586]
[1641473932438,3.15272161,3357.4,3356.3,0.01591586]
[1641473932637,18.02,3357.3,3356.3,0.01591586]
[1641473932838,0.74505,3356.8,3356.3,0.01591586]
[1641473933292,1.17501,3356.9,3356.3,0.01591586]
[1641473933293,0.43,3356.9,3356.3,0.01591586]
[1641473933597,2.8846714,3356.8,3356.3,0.01591586]
[1641473933795,2.88225065,3356.8,3355.9,0.01818956]
[1641473933995,12.49518,3356.5,3356.4,0.01534744]
[1641473934196,12.49518,3356.5,3355.9,0.01818956]
[1641473934197,2.19418532,3356.3,3355.9,0.01818956]
[1641473934397,3.8569144,3356.2,3355.9,0.01818956]
[1641473934596,17.59,3356.1,3355.9,0.01818956]
[1641473934797,12.13621871,3356.0,3355.9,0.01818956]
[1641473934998,11.7974692,3356.0,3355.9,0.01818956]
[1641473935199,8.93,3356.0,3355.9,0.01818956]
[1641473935402,29.48115117,3356.0,3355.9,0.01818956]
[1641473935798,31.66500462,3356.0,3355.9,0.01818956]
[1641473936400,29.48115117,3356.0,3355.9,0.01818956]
[1641473936602,11.89115117,3356.0,3355.9,0.01818956]
[1641473936799,8.93,3356.0,3355.9,0.01818956]
[1641473937724,0.43,3356.0,3355.9,0.01818956]
[1641473941281,7.08,3356.0,3355.9,0.01818956]
[1641473941678,0.43,3356.0,3355.9,0.01818956]
[1641473942283,0.51255278,3356.4,3356.0,1.01273668]
[1641473942780,0.43,3356.6,3356.1,0.01705271]
[1641473943480,0.43,3356.6,3356.4,1.13722269]
[1641473943879,0.43,3356.6,3356.5,0.01477901]
[1641473944082,5.03,3356.6,3356.5,0.01477901]
[1641473944282,0.43,3356.6,3356.5,0.01477901]
[1641473944541,2.64736771,3357.4,3356.6,1.07742862]
[1641473944741,1.04086771,3357.4,3357.2,1.04339869]
[1641473944942,1.04086771,3357.5,3357.2,1.04339869]
[1641473945142,1.04086771,3357.5,3357.3,0.31023163]
[1641473945350,1.04086771,3357.5,3357.3,0.01023163]
[1641473946243,5.0,3357.9,3357.3,0.01023163]
[1641473946847,5.0,3357.9,3357.3,0.31023163]
[1641473947247,5.0,3357.9,3357.4,2.27681901]
[1641473947648,5.0,3357.9,3357.5,0.60478478]
[1641473947848,5.0,3357.9,3357.8,1.32657881]
[1641473948275,5.0,3357.9,3357.8,1.33396832]
[1641473948677,5.0,3357.9,3357.8,0.00738951]
[1641473948878,5.74483,3357.9,3357.8,0.00738951]
[1641473949077,13.14483,3357.9,3357.8,0.00738951]
[1641473949280,13.14483,3357.9,3357.0,0.0119369]
[1641473949680,13.14483,3357.9,3357.2,1.27617334]
[1641473949879,13.88966,3357.9,3357.2,1.27617334]
[1641473950078,5.48966,3357.9,3357.3,0.01023163]
[1641473950878,6.23449,3357.9,3357.3,0.01023163]
[1641473951080,23.07966,3357.9,3357.3,0.01023163]
[1641473951679,5.48966,3357.9,3357.3,0.01023163]
[1641473951882,0.74489,3357.7,3357.3,0.01023163]
[1641473952134,0.74491,3357.5,3356.6,0.01421059]
[1641473952336,3.64825598,3357.4,3356.6,0.01421059]
[1641473952532,3.64825598,3357.4,3356.2,3.7998]
[1641473952533,1.0,3357.3,3356.4,0.01534744]
[1641473952735,21.64556441,3357.2,3356.4,0.01534744]
[1641473952933,21.64556441,3357.2,3356.1,1.09628093]
[1641473953134,0.74512,3356.7,3356.1,1.09628093]
[1641473953332,0.74512,3356.7,3356.2,0.01648428]
[1641473953333,1.49026,3356.7,3356.2,0.01648428]
[1641473953833,0.43,3356.8,3356.2,0.01648428]
[1641473955034,3.18,3356.8,3356.7,1.05255421]
[1641473955433,3.18,3356.8,3356.7,0.01364217]
[1641473955888,0.43,3356.8,3355.9,0.01818956]
[1641473956488,0.43,3356.8,3356.7,1.21191375]
[1641473956690,1.47086771,3357.5,3356.7,5.25523864]
[1641473956893,0.43,3357.5,3357.4,1.31480076]
[1641473957490,1.5258583,3357.8,3357.5,1.85575471]
[1641473957491,0.7810083,3357.8,3357.5,1.85575471]
[1641473957889,0.7810083,3357.8,3357.6,0.00852636]
[1641473958290,4.74483,3357.9,3357.6,0.00852636]
[1641473958896,4.74483,3357.9,3357.5,0.00909478]
[1641473959292,4.74483,3357.9,3357.7,3.66387088]
[1641473959747,4.74483,3357.9,3357.8,0.00738951]
[1641473960844,4.74483,3357.9,3357.8,2.53441748]
[1641473961446,4.74483,3357.9,3357.8,3.67126039]
[1641473962045,2.87953,3357.9,3357.8,12.22126039]
[1641473962248,2.87953,3357.9,3357.8,3.67126039]
[1641473962847,2.87953,3357.9,3357.8,2.53441748]
[1641473963045,2.87953,3357.9,3357.8,10.00926446]
[1641473963895,2.87953,3357.9,3357.8,2.53441748]
[1641473964102,2.87953,3357.9,3357.8,2.54598893]
[1641473964103,1.98423,3357.9,3357.8,2.54598893]
[1641473964297,1.98423,3357.9,3357.8,14.29598893]
[1641473964497,1.98423,3357.9,3357.8,14.59598893]
[1641473964698,1.98423,3357.9,3357.8,15.59598893]
[1641473964902,1.98423,3357.9,3357.8,18.555544]
[1641473965299,1.98423,3357.9,3357.8,17.255544]
[1641473966400,1.46203,3357.9,3357.8,18.555544]
[1641473966598,2.59889096,3359.1,3357.9,12.86416848]
[1641473966800,2.59889096,3359.1,3358.4,0.74434]
[1641473967045,2.59889096,3359.1,3358.5,1.16252123]
[1641473967241,2.59889096,3359.1,3358.5,1.16593178]
[1641473967242,2.53855475,3359.1,3358.5,1.16593178]
[1641473967444,1.31965475,3359.1,3358.6,0.00284212]
[1641473967844,1.31965475,3359.1,3358.7,2.0310693]
[1641473968045,1.31965475,3359.1,3358.7,2.3310693]
[1641473968242,1.31965475,3359.1,3358.8,0.74594777]
[1641473968643,1.31965475,3359.1,3358.9,0.00113685]
[1641473969646,1.31965475,3359.1,3359.0,10.31156731]
[1641473970049,1.31965475,3359.1,3359.0,11.61156731]
[1641473970245,1.31965475,3359.1,3359.0,10.61156731]
[1641473970885,1.31965475,3359.1,3359.0,13.06156731]
[1641473971689,0.00603182,3360.0,3359.1,1.69755732]
[1641473971887,0.00603182,3360.0,3359.3,0.59525]
[1641473972085,0.00454738,3359.9,3359.3,1.59525]
[1641473972486,0.00397896,3359.8,3359.3,1.59525]
[1641473972885,0.00341054,3359.7,3359.3,1.59525]
[1641473973086,0.00341054,3359.7,3359.5,0.74408]
[1641473973285,0.00284211,3359.6,3359.5,0.74408]
[1641473973487,0.00284211,3359.6,3359.5,1.04408]
[1641473973690,0.00284211,3359.6,3359.3,0.59525]
[1641473973887,0.00284211,3359.6,3359.2,1.19049]
[1641473974087,0.00227369,3359.5,3359.2,1.19049]
[1641473974288,0.00227369,3359.5,3359.1,1.69755732]
[1641473974568,0.00170527,3359.4,3359.1,1.69755732]
[1641473974971,0.00113684,3359.3,3359.1,1.69755732]
[1641473975383,0.00083809,3359.9,3359.1,1.69755732]
[1641473975384,0.00397896,3359.8,3359.2,0.01156662]
[1641473975572,0.1827,3359.4,3359.2,0.01156662]
[1641473975774,0.6106,3359.4,3359.2,0.01156662]
[1641473975973,0.00113684,3359.3,3359.2,0.01156662]
[1641473979683,0.00113684,3359.3,3359.2,3.01156662]
[1641473980687,0.00113684,3359.3,3359.2,7.71156662]
[1641473981688,0.00113684,3359.3,3359.2,11.76156662]
[1641473982336,0.00113684,3359.3,3359.2,7.71156662]
[1641473982738,0.00113684,3359.3,3359.2,11.66156662]
[1641473983140,0.00113684,3359.3,3359.2,7.71156662]
[1641473983338,0.00113684,3359.3,3359.2,3.01156662]
[1641473983740,0.00113684,3359.3,3359.2,6.96156662]
[1641473987003,0.00113684,3359.3,3359.2,8.26156662]
[1641473987706,0.00113684,3359.3,3359.2,13.06156662]
[1641473989205,0.00113684,3359.3,3359.2,11.72174907]
[1641473989405,0.00113684,3359.3,3359.2,13.02174907]
[1641473990350,0.00113684,3359.3,3359.2,13.76593907]
[1641473991056,0.00113684,3359.3,3359.2,13.02174907]
[1641473991452,0.00113684,3359.3,3359.2,9.48654853]
[1641473991652,0.00113684,3359.3,3359.2,13.38654853]
[1641473992854,0.00113684,3359.3,3359.2,13.68654853]
[1641473993064,0.00113684,3359.3,3359.2,14.68654853]
[1641473993305,0.00113684,3359.3,3359.2,10.78654853]
[1641473993691,0.00113684,3359.3,3359.2,13.83654853]
[1641473994692,0.00603182,3360.0,3359.6,0.74406]
[1641473994891,0.00603182,3360.0,3359.7,0.7440764]
[1641473995092,0.00341054,3359.9,3359.7,1.0440764]
[1641473995492,0.00284212,3359.8,3359.7,1.0440764]
[1641473997337,0.00084212,3359.8,3359.7,1.0440764]
[1641473997541,0.00084212,3359.8,3359.7,0.7440764]
[1641473998038,0.00084212,3359.8,3359.7,1.0440764]
[1641474000241,0.00084212,3359.8,3359.7,12.4881764]
[1641474000442,0.00084212,3359.8,3359.7,11.4881764]
[1641474001419,0.00084212,3359.8,3359.7,12.4881764]
[1641474001608,4.212e-05,3359.8,3359.7,14.5381764]
[1641474001810,3.182e-05,3360.0,3359.8,11.75]
[1641474002012,3.182e-05,3360.0,3359.9,12.18]
[1641474002208,4.19091482,3362.0,3361.7,1.14852763]
[1641474002510,4.19091482,3362.0,3361.7,1.10082763]
[1641474002511,1.51647808,3362.0,3361.7,1.10082763]
[1641474002709,3.74132506,3362.2,3360.9,0.3]
[1641474002916,1.46647808,3362.2,3360.9,0.3]
[1641474003110,1.46647808,3362.2,3360.7,0.00761555]
[1641474003311,1.46647808,3362.2,3361.3,0.74368]
[1641474003511,1.46647808,3362.2,3361.7,0.7436405]
[1641474003709,1.46647808,3362.2,3361.6,1.4872809]
[1641474003913,2.28763301,3362.4,3361.9,1.15945423]
[1641474004313,0.01278603,3362.4,3361.9,1.15945423]
[1641474004956,0.01278603,3362.4,3361.9,1.90312843]
[1641474005156,0.66771811,3362.8,3361.9,1.90312843]
[1641474005561,5.08788043,3362.4,3362.3,0.59489]
[1641474005761,5.08788043,3362.4,3361.9,2.2309319]
[1641474005762,5.08788043,3362.4,3362.0,1.52628074]
[1641474006157,5.08788043,3362.4,3362.0,2.52628074]
[1641474006563,0.66771811,3362.8,3362.7,1.01852173]
[1641474007759,0.68477081,3362.8,3362.7,1.01852173]
[1641474007963,0.68477081,3362.8,3362.7,1.31852173]
[1641474008158,6.17,3363.0,3362.7,1.31852173]
[1641474008400,6.17,3363.0,3362.8,1.66474101]
[1641474008601,6.17,3363.0,3362.8,2.66474101]
[1641474009299,6.94,3363.2,3362.8,2.66474101]
[1641474009300,5.6583,3363.2,3363.0,11.75]
[1641474009502,0.06032461,3364.0,3363.0,11.75]
[1641474009700,0.06032461,3364.0,3363.1,1.0]
[1641474009899,0.01032461,3364.0,3363.1,1.0]